Workbook

Sheet 1. 매수매도 총잔량
A3: =TODAY() -> 2024-01-19
A4: 시간 | B4: 매도총잔량 | C4: 매도건수 | D4: 매수총잔량 | E4: 매수건수 | F4: 순매수총잔량 | G4: 선물지수 | H4: 순매수건수 | I4: 평균계약수
A5: 45310.65694 | B5: 8430 | C5: 1146 | D5: 7092 | E5: 1147 | F5: -1338 | G5: 333.65 | H5: 1 | I5: -1338
B6: 건수당 계약수 | C6: 7.356020942 | D6: 건수당 계약수 | E6: 6.183086312 | F6: 건수당 계약수 | H6: -1.17293463
A8: 시간 | B8: 매도총잔량 | C8: 매도건수 | D8: 매수총잔량 | E8: 매수건수 | F8: 순매수총잔량 | G8: 선물지수 | H8: 순매수건수 | I8: 평균계약수
A9: 08:40:00 | B9: 14290 | C9: 1324 | D9: 14438 | E9: 1537 | F9: 148 | G9: 329.1 | H9: =(D9/E9)-(B9/C9) -> -1.399427417 | I9: =(D9-B9)/(E9-C9) -> 0.6948356808
A10: 08:41:00 | B10: 14243 | C10: 1336 | D10: 13286 | E10: 1500 | F10: -957 | G10: 329.1 | H10: =(D10/E10)-(B10/C10) -> -1.80359481 | I10: =(D10-B10)/(E10-C10) -> -5.835365854
A11: 08:42:00 | B11: 14281 | C11: 1363 | D11: 13398 | E11: 1568 | F11: -883 | G11: 329.1 | H11: -1.932980034 | I11: -4.307317073
A12: 08:43:00 | B12: 14215 | C12: 1386 | D12: 13620 | E12: 1630 | F12: -595 | G12: 329.1 | H12: -1.900304535 | I12: -2.43852459
A13: 08:44:00 | B13: 11752 | C13: 1135 | D13: 13411 | E13: 1676 | F13: 1659 | G13: 329.1 | H13: -2.352395046 | I13: 3.066543438
A14: 08:45:00 | B14: 12558 | C14: 1335 | D14: 14771 | E14: 1899 | F14: 2213 | G14: 329.1 | H14: -1.628437202 | I14: 3.923758865
A15: 08:46:00 | B15: 12458 | C15: 1515 | D15: 14740 | E15: 1897 | F15: 2282 | G15: 332.7 | H15: -0.4529388943 | I15: 5.97382199
A16: 08:47:00 | B16: 12886 | C16: 1688 | D16: 14475 | E16: 1885 | F16: 1589 | G16: 332.4 | H16: 0.04515883691 | I16: 8.065989848
A17: 08:48:00 | B17: 12373 | C17: 1508 | D17: 15350 | E17: 2124 | F17: 2977 | G17: 332.85 | H17: -0.9779768417 | I17: 4.832792208
A18: 08:49:00 | B18: 11519 | C18: 1331 | D18: 15743 | E18: 2259 | F18: 4224 | G18: 333.35 | H18: -1.685382354 | I18: 4.551724138
A19: 08:50:00 | B19: 12014 | C19: 1549 | D19: 15711 | E19: 2255 | F19: 3697 | G19: 333.1 | H19: -0.7887875591 | I19: 5.236543909
A20: 08:51:00 | B20: 11892 | C20: 1464 | D20: 16060 | E20: 2381 | F20: 4168 | G20: 333.4 | H20: -1.377885721 | I20: =(D20-B20)/(E20-C20) -> 4.54525627
A21: 08:52:00 | B21: 12247 | C21: 1533 | D21: 16111 | E21: 2389 | F21: 3864 | G21: 333.35 | H21: -1.245084764 | I21: 4.514018692
A22: 08:53:00 | B22: 12474 | C22: 1707 | D22: 16066 | E22: 2390 | F22: 3592 | G22: 333.3 | H22: -0.5853813855 | I22: =(D22-B22)/(E22-C22) -> 5.259150805
A23: 08:54:00 | B23: 12486 | C23: 1709 | D23: 16141 | E23: 2411 | F23: 3655 | G23: 333.35 | H23: -0.6112944402 | I23: 5.206552707
A24: 08:55:00 | B24: 12704 | C24: 1795 | D24: 16011 | E24: 2379 | F24: 3307 | G24: 333.2 | H24: -0.3472986122 | I24: 5.662671233
A25: 08:56:00 | B25: 12880 | C25: 1823 | D25: 15989 | E25: 2397 | F25: 3109 | G25: 333.2 | H25: -0.3948556559 | I25: 5.416376307
A26: 08:57:00 | B26: 12108 | C26: 1642 | D26: 16610 | E26: 2542 | F26: 4502 | G26: 333.6 | H26: -0.8397092069 | I26: 5.002222222
A27: 08:58:00 | B27: 12346 | C27: 1722 | D27: 16412 | E27: 2473 | F27: 4066 | G27: 333.5 | H27: -0.5330963488 | I27: 5.414114514
A28: 08:59:00 | B28: 12582 | C28: 1833 | D28: 15999 | E28: 2379 | F28: 3417 | G28: 333.25 | H28: -0.1390625419 | I28: 6.258241758
A29: 09:00:00 | B29: 12364 | C29: 1765 | D29: 16287 | E29: 2475 | F29: 3923 | G29: 333.45 | H29: -0.4244930895 | I29: 5.525352113
A30: 09:01:00 | B30: 12953 | C30: 1953 | D30: 15969 | E30: 2368 | F30: 3016 | G30: 333.15 | H30: 0.1113050695 | I30: 7.26746988
A31: 09:02:00 | B31: 12922 | C31: 1902 | D31: 16443 | E31: 2547 | F31: 3521 | G31: 333.3 | H31: -0.338070768 | I31: 5.458914729
A32: 09:03:00 | B32: 13100 | C32: 1979 | D32: 16411 | E32: 2524 | F32: 3311 | G32: 333.35 | H32: -0.1175238178 | I32: 6.075229358
A33: 09:04:00 | B33: 14023 | C33: 2263 | D33: 15777 | E33: 2335 | F33: 1754 | G33: 332.95 | H33: 0.5601035559 | I33: 24.36111111
A34: 09:05:00 | B34: 13618 | C34: 2112 | D34: 16011 | E34: 2383 | F34: 2393 | G34: 333.15 | H34: 0.2709251294 | I34: 8.830258303
A35: 09:06:00 | B35: 13301 | C35: 2009 | D35: 16691 | E35: 2566 | F35: 3390 | G35: 333.4 | H35: -0.11603028 | I35: 6.086175943
A36: 09:07:00 | B36: 13565 | C36: 2140 | D36: 16688 | E36: 2579 | F36: 3123 | G36: 333.3 | H36: 0.1319400405 | I36: 7.113895216
A37: 09:08:00 | B37: 12710 | C37: 1900 | D37: 16997 | E37: 2732 | F37: 4287 | G37: 333.7 | H37: -0.4680241967 | I37: 5.152644231
A38: 09:09:00 | B38: 11925 | C38: 1708 | D38: 17686 | E38: 2907 | F38: 5761 | G38: 334.05 | H38: =(D38/E38)-(B38/C38) -> -0.8979147886 | I38: 4.804837364
A39: 09:10:00 | B39: 11991 | C39: 1898 | D39: 17322 | E39: 2746 | F39: 5331 | G39: 334.1 | H39: =(D39/E39)-(B39/C39) -> -0.009618358574 | I39: 6.286556604
A40: 09:11:00 | B40: 13079 | C40: 2146 | D40: 16155 | E40: 2444 | F40: 3076 | G40: 333.35 | H40: 0.5154708719 | I40: 10.32214765
A41: 09:12:00 | B41: 13076 | C41: 2160 | D41: 16309 | E41: 2510 | F41: 3233 | G41: 333.3 | H41: 0.443905858 | I41: 9.237142857
A42: 09:13:00 | B42: 13351 | C42: 2245 | D42: 16118 | E42: 2444 | F42: 2767 | G42: 333.15 | H42: 0.6479330318 | I42: 13.90452261
A43: 09:14:00 | B43: 12600 | C43: 2075 | D43: 16879 | E43: 2713 | F43: 4279 | G43: 333.5 | H43: 0.1492368294 | I43: 6.706896552
A44: 09:15:00 | B44: 12585 | C44: 2045 | D44: 17045 | E44: 2796 | F44: 4460 | G44: 333.55 | H44: -0.05782536001 | I44: 5.938748336
A45: 09:16:00 | B45: 12375 | C45: 1991 | D45: 17350 | E45: 2913 | F45: 4975 | G45: 333.7 | H45: -0.2594105676 | I45: 5.395878525
A46: 09:17:00 | B46: 11956 | C46: 1833 | D46: 17888 | E46: 3099 | F46: 5932 | G46: 333.95 | H46: -0.7504559044 | I46: 4.685624013
A47: 09:18:00 | B47: 12173 | C47: 1926 | D47: 17829 | E47: 3054 | F47: 5656 | G47: 334.05 | H47: -0.4824355781 | I47: 5.014184397
A48: 09:19:00 | B48: 11185 | C48: 1671 | D48: 18622 | E48: 3262 | F48: 7437 | G48: 334.55 | H48: -0.9848290215 | I48: 4.674418605
A49: 09:20:00 | B49: 11704 | C49: 1825 | D49: 18526 | E49: 3215 | F49: 6822 | G49: 334.4 | H49: -0.6507867658 | I49: 4.907913669
A50: 09:21:00 | B50: 11639 | C50: 1815 | D50: 18794 | E50: 3274 | F50: 7155 | G50: 334.45 | H50: -0.6722934347 | I50: 4.904043866
A51: 09:22:00 | B51: 11729 | C51: 1875 | D51: 18519 | E51: 3219 | F51: 6790 | G51: 334.4 | H51: -0.5024377757 | I51: =(D51-B51)/(E51-C51) -> 5.052083333
A52: 09:23:00 | B52: 12766 | C52: 2231 | D52: 17397 | E52: 2876 | F52: 4631 | G52: 333.85 | H52: 0.3269287116 | I52: 7.179844961
A53: 09:24:00 | B53: 13110 | C53: 2327 | D53: 17122 | E53: 2777 | F53: 4012 | G53: 333.6 | H53: 0.5317830376 | I53: 8.915555556
A54: 09:25:00 | B54: 12864 | C54: 2256 | D54: 17466 | E54: 2938 | F54: 4602 | G54: 333.75 | H54: 0.2427327897 | I54: 6.747800587
A55: 09:26:00 | B55: 12739 | C55: 2218 | D55: 17723 | E55: 3017 | F55: 4984 | G55: 333.85 | H55: 0.1309159428 | I55: 6.237797247
A56: 09:27:00 | B56: 13049 | C56: 2323 | D56: 17530 | E56: 2940 | F56: 4481 | G56: 333.75 | H56: 0.3452798252 | I56: 7.262560778
A57: 09:28:00 | B57: 12762 | C57: 2195 | D57: 18087 | E57: 3103 | F57: 5325 | G57: 333.95 | H57: 0.01475227515 | I57: 5.864537445
A58: 09:29:00 | B58: 12135 | C58: 1999 | D58: 18838 | E58: 3329 | F58: 6703 | G58: 334.25 | H58: -0.4117788843 | I58: 5.039849624
A59: 09:30:00 | B59: 12411 | C59: 2037 | D59: 18726 | E59: 3296 | F59: 6315 | G59: 334.3 | H59: -0.4113514663 | I59: 5.015885624
A60: 09:31:00 | B60: 11211 | C60: 1737 | D60: 19776 | E60: 3511 | F60: 8565 | G60: 334.75 | H60: -0.8216481239 | I60: 4.828072153
A61: 09:32:00 | B61: 12158 | C61: 2059 | D61: 18883 | E61: 3257 | F61: 6725 | G61: 334.4 | H61: -0.107141595 | I61: 5.613522538
A62: 09:33:00 | B62: 11869 | C62: 1999 | D62: 19192 | E62: 3371 | F62: 7323 | G62: 334.5 | H62: -0.2442026412 | I62: 5.337463557
A63: 09:34:00 | B63: 12516 | C63: 2213 | D63: 18359 | E63: 3139 | F63: 5843 | G63: 334.2 | H63: 0.1930068881 | I63: 6.309935205
A64: 09:35:00 | B64: 12269 | C64: 2145 | D64: 18803 | E64: 3249 | F64: 6534 | G64: 334.3 | H64: 0.06750565532 | I64: 5.918478261
A65: 09:36:00 | B65: 12389 | C65: 2133 | D65: 18922 | E65: 3211 | F65: 6533 | G65: 334.3 | H65: 0.08461697607 | I65: 6.060296846
A66: 09:37:00 | B66: 12128 | C66: 2061 | D66: 19413 | E66: 3316 | F66: 7285 | G66: 334.45 | H66: -0.03017949524 | I66: 5.804780876
A67: 09:38:00 | B67: 12112 | C67: 2049 | D67: 19550 | E67: 3369 | F67: 7438 | G67: 334.5 | H67: -0.1082673085 | I67: 5.634848485
A68: 09:39:00 | B68: 11848 | C68: 1996 | D68: 19713 | E68: 3368 | F68: 7865 | G68: 334.55 | H68: -0.08284323992 | I68: 5.732507289
A69: 09:40:00 | B69: 12293 | C69: 2147 | D69: 19230 | E69: 3248 | F69: 6937 | G69: 334.35 | H69: 0.1949027856 | I69: 6.300635786
A70: 09:41:00 | B70: 12325 | C70: 2135 | D70: 18651 | E70: 3256 | F70: 6326 | G70: 334.35 | H70: -0.04463962046 | I70: 5.643175736
A71: 09:42:00 | B71: 12155 | C71: 2100 | D71: 18922 | E71: 3358 | F71: 6767 | G71: 334.4 | H71: -0.1531935109 | I71: 5.379173291
A72: 09:43:00 | B72: 12800 | C72: 2290 | D72: 18405 | E72: 3170 | F72: 5605 | G72: 334.2 | H72: 0.2164740402 | I72: 6.369318182
A73: 09:44:00 | B73: 13334 | C73: 2428 | D73: 17898 | E73: 3061 | F73: 4564 | G73: 333.95 | H73: =(D73/E73)-(B73/C73) -> 0.3553460203 | I73: =(D73-B73)/(E73-C73) -> 7.210110585
A74: 09:45:00 | B74: 13257 | C74: 2389 | D74: 17968 | E74: 3103 | F74: 4711 | G74: 334 | H74: 0.2413415392 | I74: 6.598039216
A75: 09:46:00 | B75: 13098 | C75: 2338 | D75: 18176 | E75: 3224 | F75: 5078 | G75: 334 | H75: 0.03549299841 | I75: 5.731376975
A76: 09:47:00 | B76: 13146 | C76: 2334 | D76: 18219 | E76: 3246 | F76: 5073 | G76: 334.05 | H76: -0.01963658654 | I76: =(D76-B76)/(E76-C76) -> 5.5625
A77: 09:48:00 | B77: 12424 | C77: 2155 | D77: 18969 | E77: 3439 | F77: 6545 | G77: 334.35 | H77: -0.2493495857 | I77: 5.097352025
A78: 09:49:00 | B78: 12824 | C78: 2280 | D78: 18620 | E78: 3325 | F78: 5796 | G78: 334.2 | H78: -0.02456140351 | I78: 5.546411483
A79: 09:50:00 | B79: 13287 | C79: 2420 | D79: 18227 | E79: 3206 | F79: 4940 | G79: 334 | H79: 0.1947817367 | I79: 6.284987277
A80: 09:51:00 | B80: 13627 | C80: 2514 | D80: 17596 | E80: 3010 | F80: 3969 | G80: 333.75 | H80: 0.4254016709 | I80: 8.002016129
A81: 09:52:00 | B81: 13666 | C81: 2522 | D81: 17466 | E81: 3013 | F81: 3800 | G81: 333.75 | H81: 0.3781648805 | I81: 7.739307536
A82: 09:53:00 | B82: 14131 | C82: 2659 | D82: 16681 | E82: 2758 | F82: 2550 | G82: 333.4 | H82: 0.733819439 | I82: 25.75757576
A83: 09:54:00 | B83: 13647 | C83: 2487 | D83: 17181 | E83: 2944 | F83: 3534 | G83: 333.6 | H83: 0.3486033625 | I83: 7.733041575
A84: 09:55:00 | B84: 13414 | C84: 2435 | D84: 17553 | E84: 3029 | F84: 4139 | G84: 333.7 | H84: 0.2861522734 | I84: 6.968013468
A85: 09:56:00 | B85: 13552 | C85: 2476 | D85: 17400 | E85: 3023 | F85: 3848 | G85: 333.7 | H85: 0.2825275473 | I85: 7.034734918
A86: 09:57:00 | B86: 13425 | C86: 2418 | D86: 17462 | E86: 3007 | F86: 4037 | G86: 333.75 | H86: 0.2550075465 | I86: 6.853989813
A87: 09:58:00 | B87: 13415 | C87: 2431 | D87: 17494 | E87: 3042 | F87: 4079 | G87: 333.75 | H87: 0.2325166036 | I87: =(D87-B87)/(E87-C87) -> 6.67594108
A88: 09:59:00 | B88: 12993 | C88: 2312 | D88: 17898 | E88: 3180 | F88: 4905 | G88: 333.95 | H88: 0.008492198211 | I88: 5.650921659
A89: 10:00:00 | B89: 12598 | C89: 2173 | D89: 18355 | E89: 3317 | F89: 5757 | G89: 334.15 | H89: -0.2639002442 | I89: 5.032342657
A90: 10:01:00 | B90: 12750 | C90: 2227 | D90: 18193 | E90: 3287 | F90: 5443 | G90: 334.1 | H90: -0.1903566444 | I90: =(D90-B90)/(E90-C90) -> 5.13490566
A91: 10:02:00 | B91: 12809 | C91: 2200 | D91: 18293 | E91: 3336 | F91: 5484 | G91: 334.2 | H91: -0.3387595378 | I91: 4.827464789
A92: 10:03:00 | B92: 13053 | C92: 2216 | D92: 18284 | E92: 3324 | F92: 5231 | G92: 334.2 | H92: -0.3897412756 | I92: 4.721119134
A93: 10:04:00 | B93: 13665 | C93: 2421 | D93: 17638 | E93: 3125 | F93: 3973 | G93: 333.95 | H93: -0.0002018339529 | I93: 5.643465909
A94: 10:05:00 | B94: 13047 | C94: 2222 | D94: 18357 | E94: 3349 | F94: 5310 | G94: 334.2 | H94: -0.390399461 | I94: 4.71162378
A95: 10:06:00 | B95: 13525 | C95: 2391 | D95: 17886 | E95: 3176 | F95: 4361 | G95: 334 | H95: -0.02501693483 | I95: 5.555414013
A96: 10:07:00 | B96: 13575 | C96: 2373 | D96: 17952 | E96: 3198 | F96: 4377 | G96: 333.95 | H96: -0.107098384 | I96: 5.305454545
A97: 10:08:00 | B97: 13733 | C97: 2423 | D97: 17919 | E97: 3185 | F97: 4186 | G97: 333.95 | H97: -0.04170757607 | I97: =(D97-B97)/(E97-C97) -> 5.49343832
A98: 10:09:00 | B98: 13536 | C98: 2386 | D98: 18066 | E98: 3226 | F98: 4530 | G98: 333.95 | H98: -0.07296905019 | I98: 5.392857143
A99: 10:10:00 | B99: 14103 | C99: 2535 | D99: 17679 | E99: 3081 | F99: 3576 | G99: 333.8 | H99: 0.1747584451 | I99: 6.549450549
A100: 10:11:00 | B100: 14353 | C100: 2618 | D100: 17386 | E100: 2988 | F100: 3033 | G100: 333.7 | H100: 0.336178429 | I100: 8.197297297
A101: 10:12:00 | B101: 14659 | C101: 2688 | D101: 17202 | E101: 2909 | F101: 2543 | G101: 333.55 | H101: 0.4598752691 | I101: 11.50678733
A102: 10:13:00 | B102: 14807 | C102: 2701 | D102: 17196 | E102: 2928 | F102: 2389 | G102: 333.55 | H102: 0.3909071321 | I102: 10.52422907
A103: 10:14:00 | B103: 14472 | C103: 2555 | D103: 17610 | E103: 3016 | F103: 3138 | G103: 333.65 | H103: 0.1746715495 | I103: 6.806941432
A104: 10:15:00 | B104: 14734 | C104: 2682 | D104: 17085 | E104: 2866 | F104: 2351 | G104: 333.4 | H104: 0.4676086161 | I104: 12.77717391
A105: 10:16:00 | B105: 14819 | C105: 2698 | D105: 17085 | E105: 2883 | F105: 2266 | G105: 333.35 | H105: 0.4335315249 | I105: 12.24864865
A106: 10:17:00 | B106: 15187 | C106: 2786 | D106: 16463 | E106: 2635 | F106: 1276 | G106: 333.05 | H106: 0.7966333429 | I106: -8.450331126
A107: 10:18:00 | B107: 14949 | C107: 2745 | D107: 16624 | E107: 2716 | F107: 1675 | G107: 333.15 | H107: 0.6748641928 | I107: -57.75862069
A108: 10:19:00 | B108: 15063 | C108: 2761 | D108: 16586 | E108: 2653 | F108: 1523 | G108: 333 | H108: 0.7961584085 | I108: -14.10185185
A109: 10:20:00 | B109: 14576 | C109: 2599 | D109: 16803 | E109: 2791 | F109: 2227 | G109: 333.2 | H109: 0.4121118987 | I109: 11.59895833
A110: 10:21:00 | B110: 15331 | C110: 2838 | D110: 15947 | E110: 2488 | F110: 616 | G110: 332.85 | H110: 1.007522224 | I110: -1.76
A111: 10:22:00 | B111: 15424 | C111: 2852 | D111: 16156 | E111: 2503 | F111: 732 | G111: 332.7 | H111: 1.046519772 | I111: -2.097421203
A112: 10:23:00 | B112: 15660 | C112: 2948 | D112: 15872 | E112: 2436 | F112: 212 | G112: 332.55 | H112: 1.203523359 | I112: -0.4140625
A113: 10:24:00 | B113: 15233 | C113: 2775 | D113: 16504 | E113: 2676 | F113: 1271 | G113: 332.75 | H113: 0.6780446815 | I113: -12.83838384
A114: 10:25:00 | B114: 14921 | C114: 2654 | D114: 16933 | E114: 2815 | F114: 2012 | G114: 332.95 | H114: 0.3931954314 | I114: 12.49689441
A115: 10:26:00 | B115: 14950 | C115: 2638 | D115: 17046 | E115: 2865 | F115: 2096 | G115: 332.95 | H115: 0.2825661198 | I115: 9.233480176
A116: 10:27:00 | B116: 15461 | C116: 2786 | D116: 16644 | E116: 2714 | F116: 1183 | G116: 332.75 | H116: 0.5831121604 | I116: -16.43055556
A117: 10:28:00 | B117: 15283 | C117: 2777 | D117: 16850 | E117: 2758 | F117: 1567 | G117: 332.8 | H117: 0.6060786796 | I117: -82.47368421
A118: 10:29:00 | B118: 15332 | C118: 2773 | D118: 16855 | E118: 2792 | F118: 1523 | G118: 332.85 | H118: 0.507861186 | I118: 80.15789474
A119: 10:30:00 | B119: 15572 | C119: 2846 | D119: 16665 | E119: 2720 | F119: 1093 | G119: 332.75 | H119: 0.6552992332 | I119: -8.674603175
A120: 10:31:00 | B120: 15179 | C120: 2739 | D120: 17000 | E120: 2831 | F120: 1821 | G120: 332.9 | H120: 0.4631416711 | I120: 19.79347826
A121: 10:32:00 | B121: 15219 | C121: 2746 | D121: 16957 | E121: 2835 | F121: 1738 | G121: 332.9 | H121: 0.4390618517 | I121: 19.52808989
A122: 10:33:00 | B122: 14924 | C122: 2667 | D122: 17380 | E122: 2945 | F122: 2456 | G122: 333 | H122: 0.3057274886 | I122: 8.834532374
A123: 10:34:00 | B123: 14740 | C123: 2618 | D123: 17593 | E123: 3019 | F123: 2853 | G123: 333.05 | H123: 0.1971741993 | I123: 7.114713217
A124: 10:35:00 | B124: 14428 | C124: 2510 | D124: 17907 | E124: 3120 | F124: 3479 | G124: 333.2 | H124: -0.008784094392 | I124: 5.703278689
A125: 10:36:00 | B125: 14625 | C125: 2587 | D125: 17651 | E125: 3015 | F125: 3026 | G125: 333.1 | H125: 0.2011283615 | I125: 7.070093458
A126: 10:37:00 | B126: 15023 | C126: 2705 | D126: 17445 | E126: 2932 | F126: 2422 | G126: 333 | H126: 0.3960742952 | I126: 10.66960352
A127: 10:38:00 | B127: 14750 | C127: 2669 | D127: 17565 | E127: 2975 | F127: 2815 | G127: 333.05 | H127: 0.3777872933 | I127: 9.199346405
A128: 10:39:00 | B128: 14995 | C128: 2725 | D128: 17051 | E128: 2907 | F128: 2056 | G128: 333 | H128: 0.3627447824 | I128: 11.2967033
A129: 10:40:00 | B129: 14663 | C129: 2585 | D129: 17593 | E129: 3038 | F129: 2930 | G129: 333.15 | H129: 0.118640483 | I129: 6.46799117
A130: 10:41:00 | B130: 14466 | C130: 2542 | D130: 17694 | E130: 3089 | F130: 3228 | G130: 333.2 | H130: 0.03727268583 | I130: =(D130-B130)/(E130-C130) -> 5.901279707
A131: 10:42:00 | B131: 14233 | C131: 2452 | D131: 18120 | E131: 3192 | F131: 3887 | G131: 333.3 | H131: =(D131/E131)-(B131/C131) -> -0.1279575366 | I131: =(D131-B131)/(E131-C131) -> 5.252702703
A132: 10:43:00 | B132: 14817 | C132: 2636 | D132: 17410 | E132: 2991 | F132: 2593 | G132: 333.1 | H132: 0.1997790285 | I132: 7.304225352
A133: 10:44:00 | B133: 14819 | C133: 2639 | D133: 17453 | E133: 3001 | F133: 2634 | G133: 333.05 | H133: 0.2003434753 | I133: 7.276243094
A134: 10:45:00 | B134: 15051 | C134: 2717 | D134: 17085 | E134: 2922 | F134: 2034 | G134: 332.95 | H134: =(D134/E134)-(B134/C134) -> 0.3074568898 | I134: =(D134-B134)/(E134-C134) -> 9.92195122
A135: 10:46:00 | B135: 15041 | C135: 2690 | D135: 17200 | E135: 2958 | F135: 2159 | G135: 333 | H135: =(D135/E135)-(B135/C135) -> 0.2232898749 | I135: =(D135-B135)/(E135-C135) -> 8.055970149
A136: 10:47:00 | B136: 14729 | C136: 2605 | D136: 17761 | E136: 3107 | F136: 3032 | G136: 333.15 | H136: 0.06232005372 | I136: 6.039840637
A137: 10:48:00 | B137: 15114 | C137: 2721 | D137: 17635 | E137: 3056 | F137: 2521 | G137: 332.95 | H137: 0.2160396595 | I137: 7.525373134
A138: 10:49:00 | B138: 15561 | C138: 2855 | D138: 17044 | E138: 2857 | F138: 1483 | G138: 332.75 | H138: 0.5152604565 | I138: 741.5
A139: 10:50:00 | B139: 15643 | C139: 2870 | D139: 16784 | E139: 2770 | F139: 1141 | G139: 332.65 | H139: 0.6086831281 | I139: -11.41
A140: 10:51:00 | B140: 15894 | C140: 2914 | D140: 16813 | E140: 2800 | F140: 919 | G140: 332.6 | H140: 0.5502845867 | I140: -8.061403509
A141: 10:52:00 | B141: 15823 | C141: 2906 | D141: 16854 | E141: 2806 | F141: 1031 | G141: 332.6 | H141: 0.561473325 | I141: -10.31
A142: 10:53:00 | B142: 15885 | C142: 2900 | D142: 16964 | E142: 2867 | F142: 1079 | G142: 332.65 | H142: 0.43940019 | I142: -32.6969697
A143: 10:54:00 | B143: 16041 | C143: 2969 | D143: 16504 | E143: 2703 | F143: 463 | G143: 332.5 | H143: 0.7029791256 | I143: -1.740601504
A144: 10:55:00 | B144: 14944 | C144: 2615 | D144: 17681 | E144: 3044 | F144: 2737 | G144: 332.85 | H144: 0.09375293654 | I144: 6.37995338
A145: 10:56:00 | B145: 15564 | C145: 2792 | D145: 17268 | E145: 2945 | F145: 1704 | G145: 332.7 | H145: 0.288998886 | I145: 11.1372549
A146: 10:57:00 | B146: 15042 | C146: 2644 | D146: 17874 | E146: 3096 | F146: 2832 | G146: 332.9 | H146: 0.08414840094 | I146: 6.265486726
A147: 10:58:00 | B147: 14567 | C147: 2508 | D147: 18439 | E147: 3233 | F147: 3872 | G147: 333.1 | H147: -0.1048422345 | I147: 5.340689655
A148: 10:59:00 | B148: 13607 | C148: 2228 | D148: 19348 | E148: 3473 | F148: 5741 | G148: 333.5 | H148: -0.5362949938 | I148: 4.61124498
A149: 11:00:00 | B149: 13516 | C149: 2250 | D149: 19393 | E149: 3544 | F149: 5877 | G149: 333.6 | H149: -0.5350456484 | I149: 4.541731066
A150: 11:01:00 | B150: 14128 | C150: 2455 | D150: 18886 | E150: 3364 | F150: 4758 | G150: 333.35 | H150: -0.1406363291 | I150: 5.234323432
A151: 11:02:00 | B151: 13754 | C151: 2308 | D151: 19283 | E151: 3497 | F151: 5529 | G151: 333.55 | H151: -0.4451171071 | I151: 4.650126156
A152: 11:03:00 | B152: 14596 | C152: 2555 | D152: 18613 | E152: 3323 | F152: 4017 | G152: 333.3 | H152: -0.1114562384 | I152: 5.23046875
A153: 11:04:00 | B153: 14731 | C153: 2582 | D153: 18474 | E153: 3304 | F153: 3743 | G153: 333.25 | H153: -0.1138628763 | I153: 5.184210526
A154: 11:05:00 | B154: 14642 | C154: 2563 | D154: 18623 | E154: 3289 | F154: 3981 | G154: 333.25 | H154: -0.05062916184 | I154: 5.483471074
A155: 11:06:00 | B155: 14979 | C155: 2690 | D155: 18090 | E155: 3186 | F155: 3111 | G155: 333.15 | H155: 0.1095646147 | I155: 6.272177419
A156: 11:07:00 | B156: 15266 | C156: 2683 | D156: 17805 | E156: 3106 | F156: 2539 | G156: 333.05 | H156: 0.04255394978 | I156: 6.002364066
A157: 11:08:00 | B157: 15419 | C157: 2815 | D157: 17422 | E157: 2982 | F157: 2003 | G157: 332.9 | H157: 0.3649453858 | I157: 11.99401198
A158: 11:09:00 | B158: 14940 | C158: 2643 | D158: 17920 | E158: 3155 | F158: 2980 | G158: 333.1 | H158: 0.02720579373 | I158: 5.8203125
A159: 11:10:00 | B159: 14550 | C159: 2523 | D159: 18276 | E159: 3286 | F159: 3726 | G159: 333.3 | H159: -0.2051668774 | I159: 4.883355177
A160: 11:11:00 | B160: 14858 | C160: 2629 | D160: 18052 | E160: 3200 | F160: 3194 | G160: 333.15 | H160: -0.01032854698 | I160: 5.593695271
A161: 11:12:00 | B161: 14659 | C161: 2562 | D161: 18313 | E161: 3292 | F161: 3654 | G161: 333.25 | H161: -0.1588220871 | I161: 5.005479452
A162: 11:13:00 | B162: 14018 | C162: 2354 | D162: 18952 | E162: 3513 | F162: 4934 | G162: 333.5 | H162: -0.5601510206 | I162: 4.257118205
A163: 11:14:00 | B163: 14406 | C163: 2485 | D163: 18472 | E163: 3360 | F163: 4066 | G163: 333.35 | H163: -0.299564051 | I163: 4.646857143
A164: 11:15:00 | B164: 14173 | C164: 2418 | D164: 18698 | E164: 3429 | F164: 4525 | G164: 333.45 | H164: -0.4085540279 | I164: 4.475766568
A165: 11:16:00 | B165: 14115 | C165: 2423 | D165: 18804 | E165: 3451 | F165: 4689 | G165: 333.45 | H165: -0.3765676251 | I165: 4.561284047
A166: 11:17:00 | B166: 14407 | C166: 2537 | D166: 18525 | E166: 3359 | F166: 4118 | G166: 333.35 | H166: -0.163720198 | I166: 5.00973236
A167: 11:18:00 | B167: 14799 | C167: 2648 | D167: 18162 | E167: 3240 | F167: 3363 | G167: 333.25 | H167: 0.01680933199 | I167: 5.680743243
A168: 11:19:00 | B168: 14700 | C168: 2628 | D168: 18147 | E168: 3245 | F168: 3447 | G168: 333.2 | H168: -0.001311466183 | I168: 5.586709887
A169: 11:20:00 | B169: 13789 | C169: 2393 | D169: 18845 | E169: 3486 | F169: 5056 | G169: 333.5 | H169: -0.3563137992 | I169: 4.625800549
A170: 11:21:00 | B170: 13635 | C170: 2368 | D170: 18976 | E170: 3519 | F170: 5341 | G170: 333.55 | H170: -0.3655826143 | I170: 4.640312772
A171: 11:22:00 | B171: 13238 | C171: 2267 | D171: 19311 | E171: 3593 | F171: 6073 | G171: 333.8 | H171: -0.4648180657 | I171: 4.579939668
A172: 11:23:00 | B172: 13237 | C172: 2286 | D172: 19130 | E172: 3511 | F172: 5893 | G172: 333.75 | H172: -0.3418735468 | I172: 4.810612245
A173: 11:24:00 | B173: 13917 | C173: 2444 | D173: 18631 | E173: 3322 | F173: 4714 | G173: 333.6 | H173: -0.08598506608 | I173: 5.369020501
A174: 11:25:00 | B174: 13991 | C174: 2485 | D174: 18546 | E174: 3298 | F174: 4555 | G174: 333.6 | H174: -0.006772960382 | I174: 5.602706027
A175: 11:26:00 | B175: 14377 | C175: 2605 | D175: 18254 | E175: 3170 | F175: 3877 | G175: 333.45 | H175: 0.2393577021 | I175: 6.861946903
A176: 11:27:00 | B176: 14237 | C176: 2545 | D176: 18391 | E176: 3233 | F176: 4154 | G176: 333.45 | H176: 0.09441849979 | I176: 6.037790698
A177: 11:28:00 | B177: 14238 | C177: 2557 | D177: 18529 | E177: 3223 | F177: 4291 | G177: 333.45 | H177: 0.1807475867 | I177: 6.442942943
A178: 11:29:00 | B178: 14368 | C178: 2582 | D178: 18463 | E178: 3204 | F178: 4095 | G178: 333.4 | H178: 0.1978058507 | I178: 6.583601286
A179: 11:30:00 | B179: 14222 | C179: 2520 | D179: 18722 | E179: 3285 | F179: 4500 | G179: 333.5 | H179: 0.05558817134 | I179: 5.882352941
A180: 11:31:00 | B180: 13797 | C180: 2376 | D180: 19156 | E180: 3392 | F180: 5359 | G180: 333.65 | H180: -0.1594125214 | I180: 5.274606299
A181: 11:32:00 | B181: 13495 | C181: 2385 | D181: 19095 | E181: 3385 | F181: 5600 | G181: 333.65 | H181: -0.01721740692 | I181: 5.6
A182: 11:33:00 | B182: 13958 | C182: 2519 | D182: 18719 | E182: 3268 | F182: 4761 | G182: 333.5 | H182: 0.186880443 | I182: 6.3564753
A183: 11:34:00 | B183: 14056 | C183: 2533 | D183: 18684 | E183: 3263 | F183: 4628 | G183: 333.5 | H183: 0.1768677968 | I183: 6.339726027
A184: 11:35:00 | B184: 13740 | C184: 2427 | D184: 19050 | E184: 3378 | F184: 5310 | G184: 333.65 | H184: -0.02187864324 | I184: 5.583596215
A185: 11:36:00 | B185: 13494 | C185: 2329 | D185: 19300 | E185: 3469 | F185: 5806 | G185: 333.75 | H185: -0.2303399762 | I185: 5.092982456
A186: 11:37:00 | B186: 13330 | C186: 2334 | D186: 19396 | E186: 3461 | F186: 6066 | G186: 333.75 | H186: -0.107064717 | I186: 5.382431233
A187: 11:38:00 | B187: 13406 | C187: 2333 | D187: 19316 | E187: 3451 | F187: 5910 | G187: 333.8 | H187: -0.1490312666 | I187: 5.286225403
A188: 11:39:00 | B188: 13159 | C188: 2268 | D188: 19577 | E188: 3547 | F188: 6418 | G188: 333.9 | H188: -0.282716124 | I188: 5.017982799
A189: 11:40:00 | B189: 13514 | C189: 2406 | D189: 19197 | E189: 3412 | F189: 5683 | G189: 333.75 | H189: 0.009527519614 | I189: 5.649105368
A190: 11:41:00 | B190: 13652 | C190: 2442 | D190: 19200 | E190: 3399 | F190: 5548 | G190: 333.65 | H190: 0.05822062133 | I190: 5.797283177
A191: 11:42:00 | B191: 13746 | C191: 2481 | D191: 19036 | E191: 3345 | F191: 5290 | G191: 333.6 | H191: 0.1503740536 | I191: 6.122685185
A192: 11:43:00 | B192: 13857 | C192: 2500 | D192: 19050 | E192: 3321 | F192: 5193 | G192: 333.6 | H192: 0.1934240289 | I192: 6.325213155
A193: 11:44:00 | B193: 14025 | C193: 2562 | D193: 18825 | E193: 3322 | F193: 4800 | G193: 333.55 | H193: 0.1925281319 | I193: 6.315789474
A194: 11:45:00 | B194: 14158 | C194: 2594 | D194: 18803 | E194: 3329 | F194: 4645 | G194: 333.55 | H194: 0.1902627618 | I194: 6.319727891
A195: 11:46:00 | B195: 14261 | C195: 2637 | D195: 18675 | E195: 3273 | F195: 4414 | G195: 333.45 | H195: 0.29773508 | I195: 6.940251572
A196: 11:47:00 | B196: 14146 | C196: 2602 | D196: 18772 | E196: 3303 | F196: 4626 | G196: 333.5 | H196: 0.246730955 | I196: 6.59914408
A197: 11:48:00 | B197: 14019 | C197: 2551 | D197: 18968 | E197: 3367 | F197: 4949 | G197: 333.55 | H197: 0.1380096696 | I197: 6.06495098
A198: 11:49:00 | B198: 13835 | C198: 2436 | D198: 19337 | E198: 3493 | F198: 5502 | G198: 333.75 | H198: -0.1434634458 | I198: 5.205298013
A199: 11:50:00 | B199: 14251 | C199: 2559 | D199: 18918 | E199: 3345 | F199: 4667 | G199: 333.55 | H199: =(D199/E199)-(B199/C199) -> 0.08663312638 | I199: =(D199-B199)/(E199-C199) -> 5.937659033
A200: 11:51:00 | B200: 14458 | C200: 2627 | D200: 18767 | E200: 3315 | F200: 4309 | G200: 333.5 | H200: 0.1576205101 | I200: 6.263081395
A201: 11:52:00 | B201: 14724 | C201: 2699 | D201: 18456 | E201: 3204 | F201: 3732 | G201: 333.35 | H201: 0.3049457907 | I201: 7.39009901
A202: 11:53:00 | B202: 14483 | C202: 2620 | D202: 18653 | E202: 3282 | F202: 4170 | G202: 333.45 | H202: 0.1555621456 | I202: 6.299093656
A203: 11:54:00 | B203: 14695 | C203: 2723 | D203: 18418 | E203: 3226 | F203: 3723 | G203: 333.35 | H203: 0.3126160723 | I203: 7.401590457
... 232 more rows

Sheet 2. 순매수에 따른 익일가격 (hidden)
I1: 15:35:00 | T1: 15:45:00 | AB1: 발생횟수 | AC1: 성공횟수 | AD1: 확률
B2: 날짜 | C2: 시간 | D2: 매도총잔량 | E2: 매도건수 | F2: 매수총잔량 | G2: 매수건수 | H2: 순매수총잔량 | I2: 선물지수 | J2: 순매수건수 | K2: 평균계약수 | M2: 날짜 | N2: 시간 | O2: 매도총잔량 | P2: 매도건수 | Q2: 매수총잔량 | R2: 매수건수 | S2: 순매수총잔량 | T2: 선물지수 | U2: 순매수건수 | V2: 평균계약수 | W2: 종가 | Y2: 순매수총잔량 | Z2: 시작가 | AA2: 일치여부 | AB2: =COUNTA(AA4:AA1000) -> 70 | AC2: =COUNTIF(AA4:AA1000,"성공") -> 37 | AD2: =AC2/AB2 -> 0.5285714286
B3: 2023-10-12 | C3: 15:35:00 | D3: 9508 | E3: 1216 | F3: 15618 | G3: 2033 | H3: 6110 | I3: 330.4 | J3: -0.1368359567 | K3: 7.478580171 | M3: 2023-10-12 | N3: 15:46:00 | O3: 10474 | P3: 1101 | Q3: 13874 | R3: 1542 | S3: 3400 | T3: 330.45 | U3: -0.5157638793 | V3: 7.709750567 | W3: =T3 -> 330.45 | Y3: =IF(H3>S3,"하락","상승") -> 하락 | AB3: 순매수총잔량 증감율
A4: 금 | B4: 2023-10-13 | C4: 15:35:00 | D4: 14867 | E4: 1854 | F4: 13866 | G4: 1712 | H4: -1001 | I4: 327.45 | J4: 0.08042096402 | K4: 7.049295775 | M4: 2023-10-13 | N4: 15:46:00 | O4: 11298 | P4: 1240 | Q4: 11489 | R4: 1268 | S4: 191 | T4: 327.85 | U4: -0.05056477053 | V4: 6.821428571 | W4: 327.85 | Y4: 상승 | Z4: 327.45 | AA4: =IF(AND(Y3="상승",Z4>W3),"성공",IF(AND(Y3="하락",Z4<W3),"성공",IF(AND(Y3="상승",Z4=W3),"동일가",IF(AND(Y3="하락",Z4=W3),"동일가","실패")))) -> 성공 | AB4: =S4/H4-1 -> -1.190809191
B5: 2023-10-16 | C5: 15:35:00 | D5: 15940 | E5: 1970 | F5: 11709 | G5: 1602 | H5: -4231 | I5: 325.05 | J5: -0.7823817943 | K5: 11.49728261 | M5: 2023-10-16 | N5: 15:46:00 | O5: 7849 | P5: 1022 | Q5: 5360 | R5: 774 | S5: -2489 | T5: 324.85 | U5: -0.7549745395 | V5: 10.03629032 | W5: 324.85 | Y5: =IF(H5>S5,"하락","상승") -> 상승 | Z5: 326.2 | AA5: 실패 | AB5: -0.4117229969
B6: 2023-10-17 | C6: 15:35:00 | D6: 13240 | E6: 1889 | F6: 17947 | G6: 2371 | H6: 4707 | I6: 328.7 | J6: 0.5603805378 | K6: 9.765560166 | M6: 2023-10-17 | N6: 15:46:00 | O6: 4526 | P6: 1045 | Q6: 8044 | R6: 1103 | S6: 3518 | T6: 328.8 | U6: 2.961737237 | V6: 60.65517241 | W6: 328.8 | Y6: 하락 | Z6: 327.15 | AA6: 성공 | AB6: -0.2526025069
B7: 2023-10-18 | C7: 15:35:00 | D7: 12859 | E7: 1924 | F7: 19132 | G7: 2629 | H7: 6273 | I7: 330.15 | J7: 0.5938198124 | K7: 8.89787234 | M7: 2023-10-18 | N7: 15:46:00 | O7: 5359 | P7: 994 | Q7: 9271 | R7: 1403 | S7: 3912 | T7: 330.2 | U7: 1.216634805 | V7: 9.564792176 | W7: 330.2 | Y7: 하락 | Z7: 327.95 | AA7: 성공 | AB7: -0.3763749402
B8: 2023-10-19 | C8: 15:35:00 | D8: 21327 | E8: 2960 | F8: 9834 | G8: 1197 | H8: -11493 | I8: 323.7 | J8: 1.01047128 | K8: 6.519001702 | M8: 2023-10-19 | N8: 15:46:00 | O8: 9871 | P8: 1718 | Q8: 5219 | R8: 684 | S8: -4652 | T8: 323.7 | U8: 1.8844825 | V8: 4.499032882 | W8: 323.7 | Y8: 상승 | Z8: 326.5 | AA8: 성공 | AB8: -0.5952318803
A9: 금 | B9: 2023-10-20 | C9: 15:35:00 | D9: 18708 | E9: 2366 | F9: 11741 | G9: 1732 | H9: -6967 | I9: 319.1 | J9: -0.263889643 | K9: 7.72796518 | M9: 2023-10-20 | N9: 15:46:00 | O9: 9208 | P9: 1203 | Q9: 6245 | R9: 949 | S9: -2963 | T9: 318.85 | U9: -1.073586669 | V9: 11.66535433 | W9: 318.85 | Y9: 상승 | Z9: 321 | AA9: 실패 | AB9: -0.5747093441
B10: 2023-10-23 | C10: 15:35:00 | D10: 14892 | E10: 2334 | F10: 14494 | G10: 1833 | H10: -398 | I10: 317.15 | J10: 1.52679314 | K10: 0.7944111776 | M10: 2023-10-23 | N10: 15:46:00 | O10: 8073 | P10: 1395 | Q10: 6831 | R10: 945 | S10: -1242 | T10: 317 | U10: 1.441474654 | V10: 2.76 | W10: 317 | Y10: 하락 | Z10: 317.15 | AA10: =IF(AND(Y9="상승",Z10>W9),"성공",IF(AND(Y9="하락",Z10<W9),"성공",IF(AND(Y9="상승",Z10=W9),"동일가",IF(AND(Y9="하락",Z10=W9),"동일가","실패")))) -> 실패 | AB10: =S10/H10-1 -> 2.120603015
B11: 2023-10-24 | C11: 15:35:00 | D11: 11514 | E11: 1530 | F11: 17453 | G11: 2719 | H11: 5939 | I11: 319.65 | J11: -1.106586187 | K11: 4.994953743 | M11: 2023-10-24 | N11: 15:46:00 | O11: 5906 | P11: 849 | Q11: 7700 | R11: 1211 | S11: 1794 | T11: 319.55 | U11: -0.598037814 | V11: 4.955801105 | W11: 319.55 | Y11: 하락 | Z11: 318.55 | AA11: 실패 | AB11: -0.6979289443
B12: 2023-10-25 | C12: 15:35:00 | D12: 18960 | E12: 2689 | F12: 10553 | G12: 1355 | H12: -8407 | I12: 317.75 | J12: 0.9912027057 | K12: 5.52532391 | M12: 2023-10-25 | N12: 15:46:00 | O12: 8726 | P12: 1370 | Q12: 4076 | R12: 566 | S12: -4650 | T12: 317.85 | U12: 0.8320703619 | V12: 5.78358209 | W12: 317.85 | Y12: 상승 | Z12: 320.3 | AA12: 실패 | AB12: -0.4468894968
B13: 2023-10-26 | C13: 15:35:00 | D13: 20611 | E13: 2970 | F13: 8651 | G13: 1141 | H13: -11960 | I13: 309.4 | J13: 0.5471770049 | K13: 6.249262537 | M13: 2023-10-26 | N13: 15:46:00 | O13: 8791 | P13: 1423 | Q13: 6158 | R13: 680 | S13: -2633 | T13: 309.15 | U13: 2.878088959 | V13: 3.543741588 | W13: 309.15 | Y13: =IF(H13>S13,"하락","상승") -> 상승 | Z13: 312.95 | AA13: 실패 | AB13: -0.7798494983
A14: 금 | B14: 2023-10-27 | C14: 15:35:00 | D14: 14273 | E14: 2133 | F14: 13278 | G14: 1990 | H14: -995 | I14: 309.5 | J14: -0.01915249006 | K14: 6.958041958 | M14: 2023-10-27 | N14: 15:46:00 | O14: 7000 | P14: 1081 | Q14: 6563 | R14: 956 | S14: -437 | T14: 309.2 | U14: 0.3895771001 | V14: 3.496 | W14: 309.2 | Y14: 상승 | Z14: 309.95 | AA14: 성공 | AB14: -0.5608040201
B15: 2023-10-30 | C15: 15:35:00 | D15: 10351 | E15: 1519 | F15: 18337 | G15: 2271 | H15: 7986 | I15: 310.3 | J15: 1.26006501 | K15: 10.61968085 | M15: 2023-10-30 | N15: 15:46:00 | O15: 3324 | P15: 627 | Q15: 7833 | R15: 941 | S15: 4509 | T15: 310.2 | U15: 3.022687866 | V15: 14.35987261 | W15: 310.2 | Y15: 하락 | Z15: 307.25 | AA15: 실패 | AB15: -0.4353869271
B16: 2023-10-31 | C16: 15:35:00 | D16: 19479 | E16: 2879 | F16: 10061 | G16: 1313 | H16: -9418 | I16: 306.75 | J16: 0.8967137877 | K16: 6.014048531 | M16: 2023-10-31 | N16: 15:46:00 | O16: 9313 | P16: 1622 | Q16: 4459 | R16: 643 | S16: -4854 | T16: 307.1 | U16: 1.19300424 | V16: 4.958120531 | W16: 307.1 | Y16: 상승 | Z16: 311.65 | AA16: =IF(AND(Y15="상승",Z16>W15),"성공",IF(AND(Y15="하락",Z16<W15),"성공",IF(AND(Y15="상승",Z16=W15),"동일가",IF(AND(Y15="하락",Z16=W15),"동일가","실패")))) -> 실패 | AB16: =S16/H16-1 -> -0.4846039499
B17: 2023-11-01 | C17: 15:35:00 | D17: 12505 | E17: 1840 | F17: 18703 | G17: 2301 | H17: 6198 | I17: 310.8 | J17: 1.332009476 | K17: 13.44468547 | M17: 2023-11-01 | N17: 15:46:00 | O17: 6095 | P17: 1011 | Q17: 7729 | R17: 1068 | S17: 1634 | T17: 311.05 | U17: 1.208206915 | V17: 28.66666667 | W17: 311.05 | Y17: 하락 | Z17: 308.4 | AA17: 성공 | AB17: -0.7363665699
B18: 2023-11-02 | C18: 15:35:00 | D18: 15256 | E18: 2159 | F18: 17094 | G18: 1861 | H18: 1838 | I18: 315.9 | J18: 2.119149834 | K18: -6.167785235 | M18: 2023-11-02 | N18: 15:46:00 | O18: 7632 | P18: 1221 | Q18: 7674 | R18: 962 | S18: 42 | T18: 316.15 | U18: 1.726516727 | V18: -0.1621621622 | W18: 316.15 | Y18: 하락 | Z18: 316.05 | AA18: 실패 | AB18: -0.9771490751
A19: 금 | B19: 2023-11-03 | C19: 15:35:00 | D19: 15120 | E19: 2050 | F19: 15477 | G19: 1950 | H19: 357 | I19: 319.5 | J19: 0.5613133208 | K19: -3.57 | M19: 2023-11-03 | N19: 15:45:00 | O19: 14160 | P19: 1654 | Q19: 13848 | R19: 1299 | S19: -312 | T19: 319.6 | U19: 2.099443996 | V19: 0.8788732394 | W19: 319.6 | Y19: =IF(H19>S19,"하락","상승") -> 하락 | Z19: 319.7 | AA19: 실패 | AB19: -1.87394958
B20: 2023-11-06 | C20: 15:35:00 | D20: 3920 | E20: 606 | F20: 24897 | G20: 3711 | H20: 20977 | I20: 334.4 | J20: 0.2403264579 | K20: 6.755877617 | M20: 2023-11-06 | N20: 15:45:00 | O20: 16699 | P20: 1125 | Q20: 25667 | R20: 2368 | S20: 8968 | T20: 335.3 | U20: -4.004450826 | V20: 7.214802896 | W20: 335.3 | Y20: 하락 | Z20: 324 | AA20: 실패 | AB20: -0.5724841493
B21: 2023-11-07 | C21: 15:35:00 | D21: 16844 | E21: 2310 | F21: 13014 | G21: 1871 | H21: -3830 | I21: 328.4 | J21: -0.3361361959 | K21: 8.724373576 | M21: 2023-11-07 | N21: 15:45:00 | O21: 18430 | P21: 1499 | Q21: 16567 | R21: 1414 | S21: -1863 | T21: 328.4 | U21: -0.5784558871 | V21: 21.91764706 | W21: 328.4 | Y21: 상승 | Z21: 334.9 | AA21: 성공 | AB21: -0.5135770235
B22: 2023-11-08 | C22: 15:35:00 | D22: 18810 | E22: 2785 | F22: 7789 | G22: 1052 | H22: -11021 | I22: 324.9 | J22: 0.6499528981 | K22: 6.35949221 | M22: 2023-11-08 | N22: 15:45:00 | O22: 16585 | P22: 2058 | Q22: 10002 | R22: 923 | S22: -6583 | T22: 325.1 | U22: 2.777608087 | V22: 5.8 | W22: 325.1 | Y22: 상승 | Z22: 331.1 | AA22: =IF(AND(Y21="상승",Z22>W21),"성공",IF(AND(Y21="하락",Z22<W21),"성공",IF(AND(Y21="상승",Z22=W21),"동일가",IF(AND(Y21="하락",Z22=W21),"동일가","실패")))) -> 성공 | AB22: =S22/H22-1 -> -0.4026857817
B23: 2023-11-09 | C23: 15:35:00 | D23: 13157 | E23: 1940 | F23: 8442 | G23: 726 | H23: -4715 | I23: 326.65 | J23: 4.846140411 | K23: 3.883855025 | M23: 2023-11-09 | N23: 15:45:00 | O23: 19892 | P23: 2460 | Q23: 11790 | R23: 1098 | S23: -8102 | T23: 326.7 | U23: 2.651526056 | V23: 5.948604993 | W23: =T23 -> 326.7 | Y23: 하락 | Z23: 325.95 | AA23: 성공 | AB23: 0.7183457052
A24: 금 | B24: 2023-11-10 | C24: 15:35:00 | D24: 14965 | E24: 2234 | F24: 15837 | G24: 2507 | H24: 872 | I24: 324.65 | J24: -0.3816345566 | K24: 3.194139194 | M24: 2023-11-10 | N24: 15:45:00 | O24: 12537 | P24: 1437 | Q24: 13881 | R24: 1574 | S24: 1344 | T24: 324.7 | U24: 0.09450676839 | V24: 9.810218978 | W24: 324.7 | Y24: 상승 | Z24: 324 | AA24: 성공 | AB24: 0.5412844037
B25: 2023-11-13 | C25: 15:35:00 | D25: 14877 | E25: 1935 | F25: 10824 | G25: 1241 | H25: -4053 | I25: 324.75 | J25: 1.033626295 | K25: 5.840057637 | M25: 2023-11-13 | N25: 15:45:00 | O25: 14131 | P25: 1907 | Q25: 10515 | R25: 1203 | S25: -3616 | T25: 325.1 | U25: 1.330580209 | V25: 5.136363636 | W25: 325.1 | Y25: =IF(H25>S25,"하락","상승") -> 상승 | Z25: 328.25 | AA25: 성공 | AB25: -0.1078213669
B26: 2023-11-14 | C26: 15:35:00 | D26: 13349 | E26: 1970 | F26: 15127 | G26: 2091 | H26: 1778 | I26: 327.65 | J26: 0.4581955055 | K26: 14.69421488 | M26: 2023-11-14 | N26: 15:45:00 | O26: 11995 | P26: 1573 | Q26: 13193 | R26: 1354 | S26: 1198 | T26: 327.8 | U26: 2.118166042 | V26: -5.470319635 | W26: 327.8 | Y26: 하락 | Z26: 326.6 | AA26: 성공 | AB26: -0.3262092238
B27: 2023-11-15 | C27: 15:35:00 | D27: 12553 | E27: 1770 | F27: 21897 | G27: 2890 | H27: 9344 | I27: 335.1 | J27: 0.4847262135 | K27: 8.342857143 | M27: 2023-11-15 | N27: 15:45:00 | O27: 13505 | P27: 1574 | Q27: 20304 | R27: 2003 | S27: 6799 | T27: 335.25 | U27: 1.556743982 | V27: 15.84848485 | W27: 335.25 | Y27: 하락 | Z27: 334.8 | AA27: 실패 | AB27: -0.2723672945
B28: 2023-11-16 | C28: 16:35:00 | D28: 15736 | E28: 1972 | F28: 15449 | G28: 1947 | H28: -287 | I28: 334.7 | J28: -0.04494458109 | K28: 11.48 | M28: 2023-11-16 | N28: 16:45:00 | O28: 14323 | P28: 1656 | Q28: 12603 | R28: 1365 | S28: -1720 | T28: 334.55 | U28: 0.5838124436 | V28: 5.910652921 | W28: 334.55 | Y28: 하락 | Z28: 334.35 | AA28: 성공 | AB28: 4.993031359
A29: 금 | B29: 2023-11-17 | C29: 15:35:00 | D29: 14539 | E29: 1874 | F29: 13556 | G29: 1595 | H29: -983 | I29: 333.05 | J29: 0.7407884832 | K29: 3.523297491 | M29: 2023-11-17 | N29: 15:45:00 | O29: 7777 | P29: 1096 | Q29: 5924 | R29: 838 | S29: -1853 | T29: 333.1 | U29: -0.02659050921 | V29: 7.182170543 | W29: 333.1 | Y29: 하락 | Z29: 334.2 | AA29: =IF(AND(Y28="상승",Z29>W28),"성공",IF(AND(Y28="하락",Z29<W28),"성공",IF(AND(Y28="상승",Z29=W28),"동일가",IF(AND(Y28="하락",Z29=W28),"동일가","실패")))) -> 성공 | AB29: =S29/H29-1 -> 0.8850457782
B30: 2023-11-20 | C30: 15:35:00 | D30: 11499 | E30: 1434 | F30: 19554 | G30: 2835 | H30: 8055 | I30: 335.55 | J30: -1.121473955 | K30: 5.749464668 | M30: 2023-11-20 | N30: 15:45:00 | O30: 4624 | P30: 708 | Q30: 8556 | R30: 1362 | S30: 3932 | T30: 335.55 | U30: -0.2491351203 | V30: 6.012232416 | W30: 335.55 | Y30: 하락 | Z30: 332.35 | AA30: 성공 | AB30: -0.5118559901
B31: 2023-11-21 | C31: 15:35:00 | D31: 13571 | E31: 1720 | F31: 13268 | G31: 1747 | H31: -303 | I31: 337.2 | J31: -0.2953824496 | K31: -11.22222222 | M31: 2023-11-21 | N31: 15:45:00 | O31: 6977 | P31: 1040 | Q31: 6827 | R31: 975 | S31: -150 | T31: 337.45 | U31: 0.2933974359 | V31: 2.307692308 | W31: 337.45 | Y31: =IF(H31>S31,"하락","상승") -> 상승 | Z31: 338 | AA31: 실패 | AB31: -0.504950495
B32: 2023-11-22 | C32: 15:35:00 | D32: 12155 | E32: 1603 | F32: 21455 | G32: 3128 | H32: 9300 | I32: 337.75 | J32: -0.7236421719 | K32: 6.098360656 | M32: 2023-11-22 | N32: 15:45:00 | O32: 9124 | P32: 1080 | Q32: 16184 | R32: 1840 | S32: 7060 | T32: 338 | U32: 0.3475040258 | V32: 9.289473684 | W32: 338 | Y32: 하락 | Z32: 335 | AA32: 실패 | AB32: -0.2408602151
B33: 2023-11-23 | C33: 15:35:00 | D33: 11017 | E33: 1962 | F33: 11446 | G33: 1862 | H33: 429 | I33: 337.6 | J33: 0.5319650152 | K33: -4.29 | M33: 2023-11-23 | N33: 15:45:00 | O33: 9842 | P33: 1464 | Q33: 11671 | R33: 1161 | S33: 1829 | T33: 337.95 | U33: 3.329863317 | V33: -6.03630363 | W33: 337.95 | Y33: 상승 | Z33: 337.45 | AA33: 성공 | AB33: 3.263403263
A34: 금 | B34: 2023-11-24 | C34: 15:35:00 | D34: 14724 | E34: 2624 | F34: 8163 | G34: 1053 | H34: -6561 | I34: 334.75 | J34: 2.140856264 | K34: 4.176320815 | M34: 2023-11-24 | N34: 15:45:00 | O34: 14916 | P34: 2014 | Q34: 8718 | R34: 815 | S34: -6198 | T34: 334.7 | U34: 3.290775614 | V34: 5.169307756 | W34: 334.7 | Y34: 상승 | Z34: 337.2 | AA34: 실패 | AB34: -0.05532693187
B35: 2023-11-27 | C35: 15:35:00 | D35: 16972 | E35: 2558 | F35: 14481 | G35: 1862 | H35: -2491 | I35: 334.2 | J35: 1.142250382 | K35: 3.579022989 | M35: 2023-11-27 | N35: 15:45:00 | O35: 11748 | P35: 1759 | Q35: 12065 | R35: 1236 | S35: 317 | T35: 334.2 | U35: 3.082532091 | V35: -0.6061185468 | W35: 334.2 | Y35: 상승 | Z35: 334.35 | AA35: 실패 | AB35: -1.127258129
B36: 2023-11-28 | C36: 15:35:00 | D36: 10701 | E36: 1284 | F36: 19672 | G36: 3042 | H36: 8971 | I36: 338.25 | J36: -1.86731399 | K36: 5.102957907 | M36: 2023-11-28 | N36: 15:45:00 | O36: 10306 | P36: 1177 | Q36: 16153 | R36: 1705 | S36: 5847 | T36: 338.4 | U36: 0.7177405651 | V36: 11.07386364 | W36: 338.4 | Y36: 하락 | Z36: 335.75 | AA36: =IF(AND(Y35="상승",Z36>W35),"성공",IF(AND(Y35="하락",Z36<W35),"성공",IF(AND(Y35="상승",Z36=W35),"동일가",IF(AND(Y35="하락",Z36=W35),"동일가","실패")))) -> 성공 | AB36: =S36/H36-1 -> -0.3482331959
B37: 2023-11-29 | C37: 15:35:00 | D37: 13518 | E37: 1890 | F37: 16056 | G37: 2344 | H37: 2538 | I37: 337.3 | J37: -0.3025516008 | K37: 5.59030837 | M37: 2023-11-29 | N37: 15:45:00 | O37: 9769 | P37: 1267 | Q37: 12661 | R37: 1346 | S37: 2892 | T37: 337.55 | U37: 1.696049917 | V37: 36.60759494 | W37: 337.55 | Y37: =IF(H37>S37,"하락","상승") -> 상승 | Z37: 338.35 | AA37: 성공 | AB37: 0.1394799054
B38: 2023-11-30 | C38: 15:35:00 | D38: 12252 | E38: 1347 | F38: 20299 | G38: 2994 | H38: 8047 | I38: 339.05 | J38: -2.315875255 | K38: 4.885853066 | M38: 2023-11-30 | N38: 15:45:00 | O38: 12711 | P38: 1064 | Q38: 15831 | R38: 1811 | S38: 3120 | T38: 339.15 | U38: -3.204849333 | V38: 4.176706827 | W38: 339.15 | Y38: 하락 | Z38: 337.05 | AA38: 실패 | AB38: -0.6122778675
A39: 금 | B39: 2023-12-01 | C39: 15:35:00 | D39: 16548 | E39: 2482 | F39: 11783 | G39: 1535 | H39: -4765 | I39: 335.15 | J39: 1.009017631 | K39: 5.031678986 | M39: 2023-12-01 | N39: 15:45:00 | O39: 13881 | P39: 1676 | Q39: 10641 | R39: 1152 | S39: -3240 | T39: 335.5 | U39: 0.9547595963 | V39: 6.183206107 | W39: 335.5 | Y39: 상승 | Z39: 337.75 | AA39: 성공 | AB39: -0.3200419727
B40: 2023-12-04 | C40: 15:35:00 | D40: 14822 | E40: 1997 | F40: 14749 | G40: 1800 | H40: -73 | I40: 336.7 | J40: 0.7717556891 | K40: 0.3705583756 | M40: 2023-12-04 | N40: 15:45:00 | O40: 12105 | P40: 1572 | Q40: 11318 | R40: 1157 | S40: -787 | T40: 336.7 | U40: 2.081813653 | V40: 1.896385542 | W40: 336.7 | Y40: 하락 | Z40: 337.05 | AA40: 성공 | AB40: 9.780821918
B41: 2023-12-05 | C41: 15:35:00 | D41: 15391 | E41: 2238 | F41: 10643 | G41: 1102 | H41: -4748 | I41: 332.65 | J41: 2.780772306 | K41: 4.179577465 | M41: 2023-12-05 | N41: 15:45:00 | O41: 14028 | P41: 1583 | Q41: 10041 | R41: 839 | S41: -3987 | T41: 332.65 | U41: 3.106163747 | V41: 5.358870968 | W41: 332.65 | Y41: 상승 | Z41: 334.15 | AA41: 성공 | AB41: -0.1602780118
B42: 2023-12-06 | C42: 15:35:00 | D42: 13958 | E42: 1907 | F42: 15189 | G42: 1516 | H42: 1231 | I42: 333.9 | J42: 2.699779524 | K42: -3.148337596 | M42: 2023-12-06 | N42: 15:45:00 | O42: 12316 | P42: 1381 | Q42: 11653 | R42: 1107 | S42: -663 | T42: 333.5 | U42: 1.608473364 | V42: 2.419708029 | W42: 333.5 | Y42: 하락 | Z42: 333.8 | AA42: =IF(AND(Y41="상승",Z42>W41),"성공",IF(AND(Y41="하락",Z42<W41),"성공",IF(AND(Y41="상승",Z42=W41),"동일가",IF(AND(Y41="하락",Z42=W41),"동일가","실패")))) -> 성공 | AB42: =S42/H42-1 -> -1.538586515
B43: 2023-12-07 | C43: 15:35:00 | D43: 12299 | E43: 1489 | F43: 15158 | G43: 1957 | H43: 2859 | I43: 333 | J43: -0.5143771064 | K43: 6.108974359 | M43: 2023-12-07 | N43: 15:45:00 | O43: 11173 | P43: 1117 | Q43: 12060 | R43: 1519 | S43: 887 | T43: 332.4 | U43: -2.063251927 | V43: 2.206467662 | W43: 332.4 | Y43: =IF(H43>S43,"하락","상승") -> 하락 | Z43: 331.8 | AA43: =IF(AND(Y42="상승",Z43>W42),"성공",IF(AND(Y42="하락",Z43<W42),"성공",IF(AND(Y42="상승",Z43=W42),"동일가",IF(AND(Y42="하락",Z43=W42),"동일가","실패")))) -> 성공 | AB43: =S43/H43-1 -> -0.6897516614
B44: 2023-12-08 | C44: 15:35:00 | D44: 11485 | E44: 1233 | F44: 17894 | G44: 2482 | H44: 6409 | I44: 337.2 | J44: -2.105171182 | K44: 5.131305044 | M44: 2023-12-08 | N44: 15:45:00 | O44: 12935 | P44: 1290 | Q44: 15739 | R44: 1812 | S44: 2804 | T44: 337.25 | U44: -1.341149443 | V44: 5.37164751 | W44: 337.25 | Y44: =IF(H44>S44,"하락","상승") -> 하락 | Z44: 334.8 | AA44: =IF(AND(Y43="상승",Z44>W43),"성공",IF(AND(Y43="하락",Z44<W43),"성공",IF(AND(Y43="상승",Z44=W43),"동일가",IF(AND(Y43="하락",Z44=W43),"동일가","실패")))) -> 실패 | AB44: =S44/H44-1 -> -0.5624902481
B45: 2023-12-11 | C45: 15:35:00 | D45: 13135 | E45: 1427 | F45: 17334 | G45: 2336 | H45: 4199 | I45: 338.3 | J45: -1.784248375 | K45: 4.619361936 | M45: 2023-12-11 | N45: 15:45:00 | O45: 11811 | P45: 1168 | Q45: 12822 | R45: 1447 | S45: 1011 | T45: 338.25 | U45: -1.25106562 | V45: 3.623655914 | W45: 338.25 | Y45: =IF(H45>S45,"하락","상승") -> 하락 | Z45: 338 | AA45: =IF(AND(Y44="상승",Z45>W44),"성공",IF(AND(Y44="하락",Z45<W44),"성공",IF(AND(Y44="상승",Z45=W44),"동일가",IF(AND(Y44="하락",Z45=W44),"동일가","실패")))) -> 실패 | AB45: =S45/H45-1 -> -0.7592283877
B46: 2023-12-12 | C46: 15:35:00 | D46: 12966 | E46: 1565 | F46: 15848 | G46: 1966 | H46: 2882 | I46: 340.45 | J46: -0.2239463857 | K46: 7.187032419 | M46: 2023-12-12 | N46: 15:45:00 | O46: 10545 | P46: 1314 | Q46: 11919 | R46: 1160 | S46: 1374 | T46: 340.5 | U46: 2.249885845 | V46: -8.922077922 | W46: 340.5 | Y46: =IF(H46>S46,"하락","상승") -> 하락 | Z46: 340.05 | AA46: =IF(AND(Y45="상승",Z46>W45),"성공",IF(AND(Y45="하락",Z46<W45),"성공",IF(AND(Y45="상승",Z46=W45),"동일가",IF(AND(Y45="하락",Z46=W45),"동일가","실패")))) -> 실패 | AB46: =S46/H46-1 -> -0.5232477446
B47: 2023-12-13 | C47: 15:35:00 | D47: 17299 | E47: 2207 | F47: 10286 | G47: 1128 | H47: -7013 | I47: 336.8 | J47: 1.280552369 | K47: 6.499536608 | M47: 2023-12-13 | N47: 15:45:00 | O47: 12052 | P47: 1597 | Q47: 7190 | R47: 824 | S47: -4862 | T47: 337 | U47: 1.179078187 | V47: 6.289780078 | W47: 337 | Y47: =IF(H47>S47,"하락","상승") -> 상승 | Z47: 340.95 | AA47: =IF(AND(Y46="상승",Z47>W46),"성공",IF(AND(Y46="하락",Z47<W46),"성공",IF(AND(Y46="상승",Z47=W46),"동일가",IF(AND(Y46="하락",Z47=W46),"동일가","실패")))) -> 실패 | AB47: =S47/H47-1 -> -0.3067160987
B48: 2023-12-14 | C48: 15:35:00 | D48: 5049 | E48: 498 | F48: 5005 | G48: 446 | H48: -44 | I48: 340.75 | J48: 1.083418877 | K48: 0.8461538462 | M48: 2023-12-14 | N48: 15:45:00 | O48: 5049 | P48: 498 | Q48: 5005 | R48: 446 | S48: -44 | T48: 340.75 | U48: 1.083418877 | V48: 0.8461538462 | W48: 340.75 | Y48: =IF(H48>S48,"하락","상승") -> 상승 | Z48: 341.25 | AA48: =IF(AND(Y47="상승",Z48>W47),"성공",IF(AND(Y47="하락",Z48<W47),"성공",IF(AND(Y47="상승",Z48=W47),"동일가",IF(AND(Y47="하락",Z48=W47),"동일가","실패")))) -> 성공 | AB48: =S48/H48-1 -> 0
B49: 2023-12-15 | C49: 15:35:00 | D49: 8978 | E49: 1586 | F49: 9221 | G49: 1561 | H49: 243 | I49: 343.55 | J49: 0.2463289853 | K49: -9.72 | M49: 2023-12-15 | N49: 15:45:00 | O49: 9208 | P49: 1301 | Q49: 8820 | R49: 1241 | S49: -388 | T49: 343.25 | U49: 0.02953904546 | V49: 6.466666667 | W49: 343.25 | Y49: =IF(H49>S49,"하락","상승") -> 하락 | Z49: 341.3 | AA49: =IF(AND(Y48="상승",Z49>W48),"성공",IF(AND(Y48="하락",Z49<W48),"성공",IF(AND(Y48="상승",Z49=W48),"동일가",IF(AND(Y48="하락",Z49=W48),"동일가","실패")))) -> 성공 | AB49: =S49/H49-1 -> -2.596707819
B50: 2023-12-18 | C50: 15:35:00 | D50: 9830 | E50: 1382 | F50: 15643 | G50: 2454 | H50: 5813 | I50: 344.45 | J50: -0.7383892567 | K50: 5.422574627 | M50: 2023-12-18 | N50: 15:45:00 | O50: 11057 | P50: 1290 | Q50: 14620 | R50: 1731 | S50: 3563 | T50: 344.45 | U50: -0.1253328497 | V50: 8.079365079 | W50: 344.45 | Y50: =IF(H50>S50,"하락","상승") -> 하락 | Z50: 343.25 | AA50: =IF(AND(Y49="상승",Z50>W49),"성공",IF(AND(Y49="하락",Z50<W49),"성공",IF(AND(Y49="상승",Z50=W49),"동일가",IF(AND(Y49="하락",Z50=W49),"동일가","실패")))) -> 동일가 | AB50: =S50/H50-1 -> -0.3870634784
B51: 2023-12-19 | C51: 15:35:00 | D51: 10399 | E51: 1156 | F51: 17760 | G51: 2782 | H51: 7361 | I51: 344.85 | J51: -2.611778263 | K51: 4.527060271 | M51: 2023-12-19 | N51: 15:45:00 | O51: 10003 | P51: 1016 | Q51: 12969 | R51: 1819 | S51: 2966 | T51: 344.75 | U51: -2.715730825 | V51: 3.693648817 | W51: 344.75 | Y51: =IF(H51>S51,"하락","상승") -> 하락 | Z51: 343.8 | AA51: =IF(AND(Y50="상승",Z51>W50),"성공",IF(AND(Y50="하락",Z51<W50),"성공",IF(AND(Y50="상승",Z51=W50),"동일가",IF(AND(Y50="하락",Z51=W50),"동일가","실패")))) -> 성공 | AB51: =S51/H51-1 -> -0.5970656161
B52: 2023-12-20 | C52: 15:35:00 | D52: 7000 | E52: 843 | F52: 21481 | G52: 3357 | H52: 14481 | I52: 351.6 | J52: -1.904809306 | K52: 5.760143198 | M52: 2023-12-20 | N52: 15:45:00 | O52: 9570 | P52: 1087 | Q52: 16511 | R52: 2078 | S52: 6941 | T52: 351.65 | U52: -0.8584270489 | V52: 7.004036327 | W52: 351.65 | Y52: =IF(H52>S52,"하락","상승") -> 하락 | Z52: 347.2 | AA52: =IF(AND(Y51="상승",Z52>W51),"성공",IF(AND(Y51="하락",Z52<W51),"성공",IF(AND(Y51="상승",Z52=W51),"동일가",IF(AND(Y51="하락",Z52=W51),"동일가","실패")))) -> 실패 | AB52: =S52/H52-1 -> -0.5206822733
B53: 2023-12-21 | C53: 15:35:00 | D53: 12381 | E53: 1602 | F53: 15853 | G53: 2227 | H53: 3472 | I53: 349.15 | J53: -0.6099192915 | K53: 5.5552 | M53: 2023-12-21 | N53: 15:45:00 | O53: 14127 | P53: 1274 | Q53: 15463 | R53: 1685 | S53: 1336 | T53: 348.9 | U53: -1.911842418 | V53: 3.250608273 | W53: 348.9 | Y53: =IF(H53>S53,"하락","상승") -> 하락 | Z53: 349 | AA53: =IF(AND(Y52="상승",Z53>W52),"성공",IF(AND(Y52="하락",Z53<W52),"성공",IF(AND(Y52="상승",Z53=W52),"동일가",IF(AND(Y52="하락",Z53=W52),"동일가","실패")))) -> 성공 | AB53: =S53/H53-1 -> -0.6152073733
B54: 2023-12-22 | C54: 15:35:00 | D54: 12991 | E54: 1972 | F54: 15796 | G54: 2085 | H54: 2805 | I54: 350.65 | J54: 0.9882909899 | K54: 24.82300885 | M54: 2023-12-22 | N54: 15:45:00 | O54: 11655 | P54: 1550 | Q54: 11624 | R54: 1290 | S54: -31 | T54: 350.7 | U54: 1.491497874 | V54: 0.1192307692 | W54: 350.7 | Y54: =IF(H54>S54,"하락","상승") -> 하락 | Z54: 351.45 | AA54: =IF(AND(Y53="상승",Z54>W53),"성공",IF(AND(Y53="하락",Z54<W53),"성공",IF(AND(Y53="상승",Z54=W53),"동일가",IF(AND(Y53="하락",Z54=W53),"동일가","실패")))) -> 실패 | AB54: =S54/H54-1 -> -1.011051693
B55: 2023-12-26 | C55: 15:35:00 | D55: 16475 | E55: 2183 | F55: 19682 | G55: 2988 | H55: 3207 | I55: 351.75 | J55: -0.9599390078 | K55: 3.983850932 | M55: 2023-12-26 | N55: 15:45:00 | O55: 12009 | P55: 1658 | Q55: 14016 | R55: 1527 | S55: 2007 | T55: 352 | U55: 1.94 | V55: -15.32 | W55: 352 | Y55: =IF(H55>S55,"하락","상승") -> 하락 | Z55: 352.45 | AA55: =IF(AND(Y54="상승",Z55>W54),"성공",IF(AND(Y54="하락",Z55<W54),"성공",IF(AND(Y54="상승",Z55=W54),"동일가",IF(AND(Y54="하락",Z55=W54),"동일가","실패")))) -> 실패 | AB55: =S55/H55-1 -> -0.374181478
B56: 2023-12-27 | C56: 15:35:00 | D56: 7706 | E56: 929 | F56: 19119 | G56: 2936 | H56: 11413 | I56: 356.1 | J56: -1.783019816 | K56: 5.686596911 | M56: 2023-12-27 | N56: 15:45:00 | O56: 11304 | P56: 867 | Q56: 15529 | R56: 2076 | S56: 4225 | T56: 355.9 | U56: -5.56 | V56: 3.49 | W56: 355.9 | Y56: =IF(H56>S56,"하락","상승") -> 하락 | Z56: 352.15 | AA56: =IF(AND(Y55="상승",Z56>W55),"성공",IF(AND(Y55="하락",Z56<W55),"성공",IF(AND(Y55="상승",Z56=W55),"동일가",IF(AND(Y55="하락",Z56=W55),"동일가","실패")))) -> 실패 | AB56: =S56/H56-1 -> -0.6298081136
B57: 2023-12-28 | C57: 15:35:00 | D57: 5072 | E57: 526 | F57: 23482 | G57: 3004 | H57: 18410 | I57: 362.3 | J57: -1.825674766 | K57: 7.429378531 | M57: 2023-12-28 | N57: 15:45:00 | O57: 11538 | P57: 812 | Q57: 22601 | R57: 2206 | S57: 11063 | T57: 362.7 | U57: -3.964119352 | V57: 7.93615495 | W57: 362.7 | Y57: =IF(H57>S57,"하락","상승") -> 하락 | Z57: 355.5 | AA57: =IF(AND(Y56="상승",Z57>W56),"성공",IF(AND(Y56="하락",Z57<W56),"성공",IF(AND(Y56="상승",Z57=W56),"동일가",IF(AND(Y56="하락",Z57=W56),"동일가","실패")))) -> 성공 | AB57: =S57/H57-1 -> -0.3990765888
B58: 2024-01-02 | C58: 15:35:00 | D58: 12796 | E58: 1579 | F58: 17048 | G58: 2869 | H58: 4252 | I58: 363.45 | J58: -2.161723086 | K58: 3.296124031 | M58: 2024-01-02 | N58: 15:45:00 | O58: 11588 | P58: 1326 | Q58: 15431 | R58: 2331 | S58: 3843 | T58: 363.8 | U58: -2.119159237 | V58: 3.823880597 | W58: 363.8 | Y58: =IF(H58>S58,"하락","상승") -> 하락 | Z58: 360.7 | AA58: =IF(AND(Y57="상승",Z58>W57),"성공",IF(AND(Y57="하락",Z58<W57),"성공",IF(AND(Y57="상승",Z58=W57),"동일가",IF(AND(Y57="하락",Z58=W57),"동일가","실패")))) -> 성공 | AB58: =S58/H58-1 -> -0.09619002822
B59: 2024-01-03 | C59: 15:35:00 | D59: 16680 | E59: 2912 | F59: 7392 | G59: 1069 | H59: -9288 | I59: 353.55 | J59: 1.186851736 | K59: 5.039609333 | M59: 2024-01-03 | N59: 15:45:00 | O59: 20999 | P59: 2023 | Q59: 15855 | R59: 1310 | S59: -5144 | T59: 353.6 | U59: 1.722924913 | V59: 7.214586255 | W59: 353.6 | Y59: =IF(H59>S59,"하락","상승") -> 상승 | Z59: 359.7 | AA59: =IF(AND(Y58="상승",Z59>W58),"성공",IF(AND(Y58="하락",Z59<W58),"성공",IF(AND(Y58="상승",Z59=W58),"동일가",IF(AND(Y58="하락",Z59=W58),"동일가","실패")))) -> 성공 | AB59: =S59/H59-1 -> -0.4461670973
B60: 2024-01-04 | C60: 15:35:00 | D60: 17439 | E60: 2513 | F60: 13205 | G60: 1961 | H60: -4234 | I60: 350.3 | J60: -0.2057052435 | K60: 7.670289855 | M60: 2024-01-04 | N60: 15:45:00 | O60: 15343 | P60: 1737 | Q60: 15163 | R60: 1698 | S60: -180 | T60: 350.3 | U60: 0.09687206935 | V60: 4.615384615 | W60: 350.3 | Y60: =IF(H60>S60,"하락","상승") -> 상승 | Z60: 350.2 | AA60: =IF(AND(Y59="상승",Z60>W59),"성공",IF(AND(Y59="하락",Z60<W59),"성공",IF(AND(Y59="상승",Z60=W59),"동일가",IF(AND(Y59="하락",Z60=W59),"동일가","실패")))) -> 실패 | AB60: =S60/H60-1 -> -0.9574870099
B61: 2024-01-05 | C61: 15:35:00 | D61: 14354 | E61: 2580 | F61: 11594 | G61: 1853 | H61: -2760 | I61: 348.85 | J61: 0.6933148425 | K61: 3.796423659 | M61: 2024-01-05 | N61: 15:45:00 | O61: 13234 | P61: 1848 | Q61: 11795 | R61: 1524 | S61: -1439 | T61: 348.7 | U61: 0.5782459011 | V61: 4.441358025 | W61: 348.7 | Y61: =IF(H61>S61,"하락","상승") -> 상승 | Z61: 349.35 | AA61: =IF(AND(Y60="상승",Z61>W60),"성공",IF(AND(Y60="하락",Z61<W60),"성공",IF(AND(Y60="상승",Z61=W60),"동일가",IF(AND(Y60="하락",Z61=W60),"동일가","실패")))) -> 실패 | AB61: =S61/H61-1 -> -0.4786231884
B62: 2024-01-08 | C62: 15:35:00 | D62: 17709 | E62: 3057 | F62: 11569 | G62: 1466 | H62: -6140 | I62: 347.55 | J62: 2.098607361 | K62: 3.859208045 | M62: 2024-01-08 | N62: 15:45:00 | O62: 12577 | P62: 2133 | Q62: 8725 | R62: 1126 | S62: -3852 | T62: 347.4 | U62: 1.85227779 | V62: 3.825223436 | W62: 347.4 | Y62: =IF(H62>S62,"하락","상승") -> 상승 | Z62: 350.35 | AA62: =IF(AND(Y61="상승",Z62>W61),"성공",IF(AND(Y61="하락",Z62<W61),"성공",IF(AND(Y61="상승",Z62=W61),"동일가",IF(AND(Y61="하락",Z62=W61),"동일가","실패")))) -> 성공 | AB62: =S62/H62-1 -> -0.3726384365
B63: 2024-01-09 | C63: 15:35:00 | D63: 19016 | E63: 3364 | F63: 9723 | G63: 1185 | H63: -9293 | I63: 346.35 | J63: 2.552268999 | K63: 4.264800367 | M63: 2024-01-09 | N63: 15:45:00 | O63: 13890 | P63: 2204 | Q63: 9402 | R63: 1003 | S63: -4488 | T63: 346.3 | U63: 3.071700506 | V63: 3.736885928 | W63: 346.3 | Y63: =IF(H63>S63,"하락","상승") -> 상승 | Z63: 351.4 | AA63: =IF(AND(Y62="상승",Z63>W62),"성공",IF(AND(Y62="하락",Z63<W62),"성공",IF(AND(Y62="상승",Z63=W62),"동일가",IF(AND(Y62="하락",Z63=W62),"동일가","실패")))) -> 성공 | AB63: =S63/H63-1 -> -0.5170558485
B64: 2024-01-10 | C64: 15:35:00 | D64: 17124 | E64: 2561 | F64: 12748 | G64: 1491 | H64: -4376 | I64: 342.7 | J64: 1.86351586 | K64: 4.089719626 | M64: 2024-01-10 | N64: 15:45:00 | O64: 12851 | P64: 1696 | Q64: 9982 | R64: 1115 | S64: -2869 | T64: 342.7 | U64: 1.375225802 | V64: 4.938037866 | W64: 342.7 | Y64: =IF(H64>S64,"하락","상승") -> 상승 | Z64: 345.35 | AA64: =IF(AND(Y63="상승",Z64>W63),"성공",IF(AND(Y63="하락",Z64<W63),"성공",IF(AND(Y63="상승",Z64=W63),"동일가",IF(AND(Y63="하락",Z64=W63),"동일가","실패")))) -> 실패 | AB64: =S64/H64-1 -> -0.3443784278
B65: 2024-01-11 | C65: 15:35:00 | D65: 12642 | E65: 1650 | F65: 15502 | G65: 2211 | H65: 2860 | I65: 343.55 | J65: -0.650511081 | K65: 5.098039216 | M65: 2024-01-11 | N65: 15:45:00 | O65: 11614 | P65: 1321 | Q65: 12143 | R65: 1494 | S65: 529 | T65: 343.55 | U65: -0.6639796633 | V65: 3.057803468 | W65: 343.55 | Y65: =IF(H65>S65,"하락","상승") -> 하락 | Z65: 344.45 | AA65: =IF(AND(Y64="상승",Z65>W64),"성공",IF(AND(Y64="하락",Z65<W64),"성공",IF(AND(Y64="상승",Z65=W64),"동일가",IF(AND(Y64="하락",Z65=W64),"동일가","실패")))) -> 성공 | AB65: =S65/H65-1 -> -0.815034965
B66: 2024-01-12 | C66: 15:35:00 | D66: 13696 | E66: 1883 | F66: 10336 | G66: 1233 | H66: -3360 | I66: 339.75 | J66: 1.109306429 | K66: 5.169230769 | M66: 2024-01-12 | N66: 15:45:00 | O66: 12564 | P66: 1475 | Q66: 10811 | R66: 1115 | S66: -1753 | T66: 340 | U66: 1.177998024 | V66: 4.869444444 | W66: 340 | Y66: =IF(H66>S66,"하락","상승") -> 상승 | Z66: 341.5 | AA66: =IF(AND(Y65="상승",Z66>W65),"성공",IF(AND(Y65="하락",Z66<W65),"성공",IF(AND(Y65="상승",Z66=W65),"동일가",IF(AND(Y65="하락",Z66=W65),"동일가","실패")))) -> 성공 | AB66: =S66/H66-1 -> -0.4782738095
B67: 2024-01-15 | C67: 15:35:00 | D67: 13174 | E67: 1907 | F67: 14904 | G67: 2091 | H67: 1730 | I67: 341.2 | J67: 0.219457274 | K67: 9.402173913 | M67: 2024-01-15 | N67: 15:45:00 | O67: 11622 | P67: 1409 | Q67: 12901 | R67: 1539 | S67: 1279 | T67: 341.3 | U67: 0.1343129266 | V67: 9.838461538 | W67: 341.3 | Y67: =IF(H67>S67,"하락","상승") -> 하락 | Z67: 340 | AA67: =IF(AND(Y66="상승",Z67>W66),"성공",IF(AND(Y66="하락",Z67<W66),"성공",IF(AND(Y66="상승",Z67=W66),"동일가",IF(AND(Y66="하락",Z67=W66),"동일가","실패")))) -> 동일가 | AB67: =S67/H67-1 -> -0.2606936416
B68: 2024-01-16 | C68: 15:35:00 | D68: 18119 | E68: 2800 | F68: 9431 | G68: 1346 | H68: -8688 | I68: 335.95 | J68: 0.5356150499 | K68: 5.975240715 | M68: 2024-01-16 | N68: 15:45:00 | O68: 15167 | P68: 1780 | Q68: 9652 | R68: 1187 | S68: -5515 | T68: 336 | U68: -0.3893627595 | V68: 9.300168634 | W68: 336 | Y68: =IF(H68>S68,"하락","상승") -> 상승 | Z68: 339.55 | AA68: =IF(AND(Y67="상승",Z68>W67),"성공",IF(AND(Y67="하락",Z68<W67),"성공",IF(AND(Y67="상승",Z68=W67),"동일가",IF(AND(Y67="하락",Z68=W67),"동일가","실패")))) -> 성공 | AB68: =S68/H68-1 -> -0.3652163904
B69: 2024-01-17 | C69: 15:35:00 | D69: 20456 | E69: 3377 | F69: 7876 | G69: 1093 | H69: -12580 | I69: 327.45 | J69: 1.148408005 | K69: 5.507880911 | M69: 2024-01-17 | N69: 15:45:00 | O69: 20144 | P69: 2289 | Q69: 12625 | R69: 1209 | S69: -7519 | T69: 327.3 | U69: 1.642164977 | V69: 6.962037037 | W69: 327.3 | Y69: =IF(H69>S69,"하락","상승") -> 상승 | Z69: 336.45 | AA69: =IF(AND(Y68="상승",Z69>W68),"성공",IF(AND(Y68="하락",Z69<W68),"성공",IF(AND(Y68="상승",Z69=W68),"동일가",IF(AND(Y68="하락",Z69=W68),"동일가","실패")))) -> 성공 | AB69: =S69/H69-1 -> -0.4023052464
B70: 2024-01-18 | C70: 15:35:00 | D70: 12717 | E70: 1856 | F70: 16598 | G70: 2286 | H70: 3881 | I70: 329.05 | J70: 0.4088855138 | K70: 9.025581395 | M70: 2024-01-18 | N70: 15:45:00 | O70: 16931 | P70: 1471 | Q70: 16848 | R70: 1374 | S70: -83 | T70: 329.1 | U70: 0.7521514937 | V70: 0.8556701031 | W70: 329.1 | Y70: =IF(H70>S70,"하락","상승") -> 하락 | Z70: 328.7 | AA70: =IF(AND(Y69="상승",Z70>W69),"성공",IF(AND(Y69="하락",Z70<W69),"성공",IF(AND(Y69="상승",Z70=W69),"동일가",IF(AND(Y69="하락",Z70=W69),"동일가","실패")))) -> 성공 | AB70: =S70/H70-1 -> -1.021386241
B71: 2024-01-19 | C71: 15:35:00 | D71: 11598 | E71: 1739 | F71: 16362 | G71: 2379 | H71: 4764 | I71: 333.95 | J71: 0.2083294961 | K71: 7.44375 | M71: 2024-01-19 | N71: 15:45:00 | O71: 15843 | P71: 1619 | Q71: 14448 | R71: 1527 | S71: -1395 | T71: 333.65 | U71: -0.3239805793 | V71: 15.16304348 | W71: 333.65 | Y71: =IF(H71>S71,"하락","상승") -> 하락 | Z71: 333 | AA71: =IF(AND(Y70="상승",Z71>W70),"성공",IF(AND(Y70="하락",Z71<W70),"성공",IF(AND(Y70="상승",Z71=W70),"동일가",IF(AND(Y70="하락",Z71=W70),"동일가","실패")))) -> 실패 | AB71: =S71/H71-1 -> -1.292821159
B72: ='1. 매수매도 총잔량'!$A$3 -> 2024-01-19 | C72: ='1. 매수매도 총잔량'!$A$424 -> 15:35:00 | D72: ='1. 매수매도 총잔량'!$B$424 -> 11598 | E72: ='1. 매수매도 총잔량'!$C$424 -> 1739 | F72: ='1. 매수매도 총잔량'!$D$424 -> 16362 | G72: ='1. 매수매도 총잔량'!$E$424 -> 2379 | H72: ='1. 매수매도 총잔량'!$F$424 -> 4764 | I72: ='1. 매수매도 총잔량'!$G$425 -> 333.95 | J72: ='1. 매수매도 총잔량'!$H$424 -> 0.2083294961 | K72: ='1. 매수매도 총잔량'!$I$424 -> 7.44375 | M72: ='1. 매수매도 총잔량'!$A$3 -> 2024-01-19 | N72: ='1. 매수매도 총잔량'!$A$434 -> 15:45:00 | O72: ='1. 매수매도 총잔량'!$B$434 -> 15843 | P72: ='1. 매수매도 총잔량'!$C$434 -> 1619 | Q72: ='1. 매수매도 총잔량'!$D$434 -> 14448 | R72: ='1. 매수매도 총잔량'!$E$434 -> 1527 | S72: ='1. 매수매도 총잔량'!$F$434 -> -1395 | T72: ='1. 매수매도 총잔량'!$G$435 -> 333.65 | U72: ='1. 매수매도 총잔량'!$H$434 -> -0.3239805793 | V72: ='1. 매수매도 총잔량'!$I$434 -> 15.16304348 | W72: =T72 -> 333.65 | Y72: =IF(H72>S72,"하락","상승") -> 하락 | Z72: =[1]!'101V3000.029' ->  | AA72: =IF(AND(Y71="상승",Z72>W71),"성공",IF(AND(Y71="하락",Z72<W71),"성공",IF(AND(Y71="상승",Z72=W71),"동일가",IF(AND(Y71="하락",Z72=W71),"동일가","실패")))) ->  | AB72: =S72/H72-1 -> -1.292821159
B73: ='1. 매수매도 총잔량'!$A$3 -> 2024-01-19 | C73: ='1. 매수매도 총잔량'!$A$424 -> 15:35:00 | D73: ='1. 매수매도 총잔량'!$B$424 -> 11598 | E73: ='1. 매수매도 총잔량'!$C$424 -> 1739 | F73: ='1. 매수매도 총잔량'!$D$424 -> 16362 | G73: ='1. 매수매도 총잔량'!$E$424 -> 2379 | H73: ='1. 매수매도 총잔량'!$F$424 -> 4764 | I73: ='1. 매수매도 총잔량'!$G$425 -> 333.95 | J73: ='1. 매수매도 총잔량'!$H$424 -> 0.2083294961 | K73: ='1. 매수매도 총잔량'!$I$424 -> 7.44375 | M73: ='1. 매수매도 총잔량'!$A$3 -> 2024-01-19 | N73: ='1. 매수매도 총잔량'!$A$434 -> 15:45:00 | O73: ='1. 매수매도 총잔량'!$B$434 -> 15843 | P73: ='1. 매수매도 총잔량'!$C$434 -> 1619 | Q73: ='1. 매수매도 총잔량'!$D$434 -> 14448 | R73: ='1. 매수매도 총잔량'!$E$434 -> 1527 | S73: ='1. 매수매도 총잔량'!$F$434 -> -1395 | T73: ='1. 매수매도 총잔량'!$G$435 -> 333.65 | U73: ='1. 매수매도 총잔량'!$H$434 -> -0.3239805793 | V73: ='1. 매수매도 총잔량'!$I$434 -> 15.16304348 | W73: =T73 -> 333.65 | Y73: =IF(H73>S73,"하락","상승") -> 하락 | Z73: =[1]!'101V3000.029' ->  | AA73: =IF(AND(Y72="상승",Z73>W72),"성공",IF(AND(Y72="하락",Z73<W72),"성공",IF(AND(Y72="상승",Z73=W72),"동일가",IF(AND(Y72="하락",Z73=W72),"동일가","실패")))) ->  | AB73: =S73/H73-1 -> -1.292821159
